bitfinex/quotes_ETHUSD_20220215
["timestamp","ask_amount","ask_price","bid_price","bid_amount"]
[1644934094853,0.5,3127.1,3125.4,1.89879]
[1644934095054,0.5,3127.1,3125.8,0.00285574]
[1644934095254,0.7993418,3127.0,3125.8,0.00285574]
[1644934095453,4.06342576,3127.0,3125.8,0.00285574]
[1644934095658,0.79948,3126.8,3125.8,0.00285574]
[1644934095955,0.79948,3126.8,3124.2,0.58421365]
[1644934095956,4.03181553,3126.7,3124.2,0.58421365]
[1644934096153,4.03181553,3126.7,3124.3,0.75830623]
[1644934096154,0.001,3126.6,3124.3,0.75830623]
[1644934096356,0.001,3126.6,3126.1,0.00285553]
[1644934096357,1.1847034,3126.6,3126.1,0.00285553]
[1644934096554,0.251,3126.5,3126.1,0.00285553]
[1644934096758,5.99196774,3126.2,3124.3,0.58421365]
[1644934096959,5.25,3125.8,3123.4,1.1296]
[1644934097157,8.501,3125.7,3123.4,1.1296]
[1644934097356,0.8000052,3124.8,3123.2,0.10100898]
[1644934097600,0.5,3124.6,3123.2,0.10100898]
[1644934097799,0.80029,3124.2,3123.2,0.10100898]
[1644934098411,2.4008272,3124.6,3123.2,0.68522263]
[1644934098604,10.40282,3126.0,3123.2,0.68522263]
[1644934098605,0.001,3124.9,3123.6,5.0]
[1644934098800,0.384,3125.3,3123.8,5.0]
[1644934098801,3.5,3125.2,3123.8,5.0]
[1644934099099,3.5,3125.2,3123.6,1.43191111]
[1644934099100,0.001,3125.1,3123.6,2.01612476]
[1644934099298,0.7998324,3125.0,3123.6,3.31612476]
[1644934099503,0.7998324,3125.0,3123.8,1.59949]
[1644934099798,0.7998324,3125.0,3123.9,0.79975]
[1644934100098,0.7998324,3125.0,3124.1,0.00276528]
[1644934100299,1.11969336,3124.9,3124.1,0.00276528]
[1644934100500,1.6001364,3124.8,3124.1,0.00276528]
[1644934100701,1.9001364,3124.8,3124.1,0.00276528]
[1644934100900,1.9001364,3124.8,3123.2,22.99252231]
[1644934101100,1.9001364,3124.8,3124.3,0.00276518]
[1644934101365,2.7001706,3124.8,3124.3,0.00276518]
[1644934102159,2.7001706,3124.8,3123.3,4.38964973]
[1644934102356,0.001,3124.9,3124.4,0.00260155]
[1644934102554,0.13819997,3125.1,3124.4,0.00260155]
[1644934102755,0.25,3126.0,3124.4,0.00260155]
[1644934103157,2.399716,3125.9,3124.4,0.00260155]
[1644934103354,0.80077,3125.8,3124.0,6.70954492]
[1644934103554,0.7998461,3125.4,3125.0,0.00260116]
[1644934103761,0.8008461,3125.4,3125.0,0.00260116]
[1644934104155,2.4001548,3125.3,3125.0,0.00260116]
[1644934104354,0.001,3125.2,3125.0,0.00260116]
[1644934104554,0.7999168,3125.0,3123.8,4.50820923]
[1644934105117,0.7999168,3125.0,3123.9,1.59977]
[1644934105118,0.8,3124.9,3123.9,1.59977]
[1644934105611,0.8000411,3124.7,3123.3,4.86699259]
[1644934106005,0.8000411,3124.7,3124.2,0.00261268]
[1644934106809,0.7998737,3124.9,3124.2,0.00261268]
[1644934107006,0.7998737,3124.9,3123.9,23.15831811]
[1644934107310,0.7998737,3124.9,3124.3,0.00261265]
[1644934108206,0.7998737,3124.9,3123.4,3.97650976]
[1644934108407,0.7998737,3124.9,3124.4,0.00261256]
[1644934108608,1.5999743,3124.8,3124.4,0.00261256]
[1644934109357,1.5999743,3124.8,3123.7,3.83413461]
[1644934109358,1.5999743,3124.8,3123.7,4.13413461]
[1644934109557,1.5999743,3124.8,3124.4,0.00261182]
[1644934110257,0.8001,3124.6,3124.4,0.00261182]
[1644934110458,0.8001,3124.6,3123.0,22.727448]
[1644934110659,0.97289252,3124.4,3123.0,18.78279583]
[1644934110960,0.97289252,3124.4,3123.2,0.10100898]
[1644934110961,0.17268472,3124.4,3123.2,0.10100898]
[1644934111659,0.80011,3124.5,3123.2,0.10100898]
[1644934111863,0.8002251,3124.1,3123.2,0.10100898]
[1644934112061,0.3178709,3124.1,3123.6,0.00261231]
[1644934112258,0.3178709,3124.1,3123.4,0.80015]
[1644934112463,0.80032,3123.9,3122.7,0.58421365]
[1644934112711,0.80032,3123.9,3122.4,2.19361365]
[1644934112712,3.19634468,3123.8,3122.4,2.19361365]
[1644934112908,0.80032,3123.9,3122.4,1.80961365]
[1644934113107,3.94060141,3123.8,3122.4,1.80961365]
[1644934113312,2.47110981,3123.7,3122.4,1.80961365]
[1644934113508,2.47110981,3123.7,3122.3,0.58421365]
[1644934113709,2.47110981,3123.7,3122.4,19.35421365]
[1644934113910,0.01885138,3124.3,3122.6,18.77]
[1644934114109,0.01885138,3124.3,3123.0,1.6003]
[1644934114913,0.01885138,3124.3,3122.5,0.80042]
[1644934114914,1.6006572,3123.9,3122.5,0.80042]
[1644934115121,3.55074097,3123.8,3122.5,0.80042]
[1644934115309,3.55074097,3123.8,3122.6,1.60066]
[1644934115509,3.19716494,3123.8,3122.6,1.60066]
[1644934115710,1.6006572,3123.9,3122.6,1.60066]
[1644934116111,1.6006572,3123.9,3122.9,0.80033]
[1644934116361,0.8001825,3124.0,3122.9,0.80033]
[1644934116761,0.8001825,3124.0,3123.0,0.11215445]
[1644934116961,1.93961226,3123.8,3123.2,0.00286018]
[1644934117564,0.8003779,3123.7,3123.2,0.00286018]
[1644934117767,0.8003779,3123.7,3122.7,0.11217375]
[1644934118162,0.8003779,3123.7,3123.3,0.00286012]
[1644934118562,1.96880118,3124.1,3123.3,0.00286012]
[1644934118863,0.8002,3124.1,3123.3,0.00286012]
[1644934119164,0.01974256,3124.3,3123.3,0.80023]
[1644934119363,0.01974256,3124.3,3123.4,0.11503382]
[1644934119761,0.01974256,3124.3,3123.5,0.11217375]
[1644934119966,0.01974256,3124.3,3123.4,0.00286007]
[1644934120217,0.81981336,3124.3,3123.3,0.08371787]
[1644934120412,3.21962151,3124.2,3123.4,0.00286012]
[1644934120609,0.01974256,3124.3,3123.4,0.00286012]
[1644934121011,1.99026405,3124.2,3123.4,0.00286012]
[1644934121210,0.8002823,3123.9,3123.4,0.00286012]
[1644934121409,0.8002823,3123.9,3122.6,2.3821]
[1644934121410,1.60092,3123.7,3122.8,0.08373441]
[1644934121609,1.60092,3123.7,3122.9,0.08773441]
[1644934121808,1.60092,3123.7,3123.0,0.08373441]
[1644934122211,1.6008814,3123.5,3123.0,0.08373441]
[1644934122411,0.8004214,3123.5,3123.0,0.08373441]
[1644934122609,0.8004214,3123.5,3123.1,0.80031]
[1644934122814,5.10053,3124.1,3123.2,0.08373441]
[1644934123014,3.5,3124.1,3123.2,0.08373441]
[1644934123210,0.8002241,3123.6,3123.2,0.08373441]
[1644934123411,0.8002241,3123.6,3123.3,0.08373441]
[1644934123612,0.8002241,3123.6,3122.9,0.004]
[1644934123854,0.8002241,3123.6,3123.0,0.08392574]
[1644934124256,0.80044,3123.5,3123.0,0.08392574]
[1644934124456,1.6007561,3123.5,3123.0,0.08392574]
[1644934125157,1.6007561,3123.5,3123.1,0.00285656]
[1644934125358,1.6007561,3123.5,3122.9,0.004]
[1644934125359,4.76859539,3123.4,3122.9,0.004]
[1644934125559,5.06859539,3123.4,3122.9,0.004]
[1644934125755,5.45259539,3123.4,3122.9,0.004]
[1644934125958,5.45259539,3123.4,3122.3,0.25]
[1644934126155,0.80055,3122.7,3121.7,1.1724]
[1644934126359,1.92334535,3122.7,3122.3,0.80053]
[1644934126760,3.5,3122.6,3122.4,0.08085064]
[1644934126960,1.12279535,3122.7,3121.4,3.23577365]
[1644934127261,0.800716,3122.4,3121.5,0.0770162]
[1644934127462,0.80072,3122.2,3121.5,0.0770162]
[1644934127709,0.80072,3122.2,3121.6,0.0770162]
[1644934127710,1.00469831,3122.0,3121.6,0.0770162]
[1644934127910,1.00469831,3122.0,3121.7,0.0770162]
[1644934128114,1.6016865,3121.9,3121.8,0.0770162]
[1644934128509,0.80081,3121.8,3121.1,1.60155]
[1644934128709,0.80081,3121.8,3121.2,0.07475147]
[1644934128910,0.80081,3121.8,3121.3,0.80079]
[1644934129111,0.80081,3121.8,3121.4,0.07475147]
[1644934129323,0.80081,3121.8,3120.3,1.6016]
[1644934129324,6.8,3121.5,3120.4,0.60291657]
[1644934129515,4.184,3121.7,3120.4,0.60291657]
[1644934129516,0.80118,3121.2,3120.4,0.00573136]
[1644934130015,0.80118,3121.2,3120.2,0.59718521]
[1644934130016,4.184,3121.1,3120.2,0.01146272]
[1644934130214,1.1833028,3120.8,3120.2,0.01146272]
[1644934130615,0.8833028,3120.8,3120.2,0.01146272]
[1644934130813,0.80117,3120.7,3120.2,0.01146272]
[1644934131216,4.37119787,3120.6,3120.2,0.01146272]
[1644934131859,5.17256787,3120.6,3119.9,0.0064892]
[1644934132060,1.6026269,3120.5,3119.9,0.0064892]
[1644934132462,0.86357094,3120.0,3119.9,0.0064892]
[1644934133667,1.16357094,3120.0,3119.9,0.0064892]
[1644934134261,1.54757094,3120.0,3119.9,0.0064892]
[1644934135504,1.24757094,3120.0,3119.9,0.0064892]
[1644934135706,1.1012992,3120.1,3119.9,0.0064892]
[1644934136305,1.1012992,3120.1,3119.9,0.0241844]
[1644934136806,1.92162806,3120.1,3119.9,0.0241844]
[1644934137205,3.10834768,3120.0,3119.9,0.0241844]
[1644934137407,3.10834768,3120.0,3119.9,0.0065844]
[1644934137610,3.10834768,3120.0,3119.9,0.0064892]
[1644934137611,9.45834768,3120.0,3119.9,0.0064892]
[1644934137809,10.14234768,3120.0,3119.9,0.0064892]
[1644934138108,6.85,3119.9,3119.7,0.0129784]
[1644934138310,6.85,3119.9,3118.8,2.51028618]
[1644934138311,6.85,3119.7,3118.8,2.02115386]
[1644934138516,6.85,3119.7,3118.8,0.22711572]
[1644934138517,3.884,3119.6,3118.8,0.22711572]
[1644934138710,3.884,3119.6,3118.8,0.00422144]
[1644934138711,0.92471347,3119.5,3118.8,0.00422144]
[1644934138984,0.9805211,3118.9,3118.8,0.00422144]
[1644934140083,0.8015925,3119.0,3118.8,0.00422144]
[1644934140284,5.9047573,3119.8,3119.0,0.52716242]
[1644934140285,3.5,3119.8,3119.0,0.52716242]
[1644934140483,0.8013,3120.0,3119.0,0.52716242]
[1644934140684,4.3013,3120.0,3119.0,0.52716242]
[1644934141089,0.5,3119.7,3119.0,0.52716242]
[1644934141486,3.5,3119.6,3119.0,0.52716242]
[1644934141701,0.80147,3119.5,3119.0,0.52716242]
[1644934141885,3.5,3119.8,3119.1,0.80128]
[1644934142083,0.23920895,3120.5,3119.1,0.80128]
[1644934142284,1.06484553,3120.1,3119.1,0.80128]
[1644934142484,0.23920895,3120.5,3119.1,1.10128]
[1644934142710,1.6025575,3120.2,3119.1,0.30844288]
[1644934142910,1.6025575,3120.2,3119.3,0.80135]
[1644934143311,1.6025575,3120.2,3119.5,0.00285455]
[1644934143512,0.98849729,3120.1,3119.5,0.00285455]
[1644934143715,0.98849729,3120.1,3119.5,0.01129743]
[1644934144111,1.28849729,3120.1,3119.5,0.01129743]
[1644934144313,1.28849729,3120.1,3119.5,0.00844288]
[1644934144511,1.28849729,3120.1,3119.6,0.00285445]
[1644934144713,1.28849729,3120.1,3119.6,0.01129733]
[1644934145513,1.28849729,3120.1,3119.6,0.00844288]
[1644934145713,1.28849729,3120.1,3119.6,0.01129734]
[1644934145915,0.80143,3119.9,3119.6,0.01129734]
[1644934146780,0.80143,3119.9,3119.6,0.00844288]
[1644934146986,0.80143,3119.9,3119.6,0.01129737]
[1644934147179,0.8013685,3119.8,3119.6,0.01129737]
[1644934147779,0.8013685,3119.8,3119.6,0.00844288]
[1644934147979,0.80143,3119.9,3119.6,0.00844288]
[1644934148179,0.8013516,3119.8,3119.6,0.00844288]
[1644934148380,0.80143,3119.9,3119.6,0.00844288]
[1644934148582,0.98849729,3120.1,3119.6,0.00844288]
[1644934148885,46.87195219,3121.1,3119.9,0.80119]
[1644934149280,1.04039225,3120.5,3119.9,0.80119]
[1644934149479,0.23920895,3120.5,3119.9,0.80119]
[1644934149880,0.13819997,3120.5,3119.9,0.80119]
[1644934150111,0.13819997,3120.5,3120.0,0.80116]
[1644934150312,1.6023415,3121.1,3119.8,3.50362706]
[1644934150513,0.5,3122.1,3120.1,5.03719099]
[1644934150716,0.50295275,3122.1,3120.2,3.5]
[1644934150910,0.00295275,3122.1,3120.2,8.884]
[1644934151113,0.00295275,3122.1,3120.4,18.77]
[1644934151313,0.85377466,3121.8,3120.6,18.77]
[1644934151519,0.85377466,3121.8,3120.8,0.80068]
[1644934151815,0.85377466,3121.8,3120.8,1.10068]
[1644934152212,0.00984582,3122.1,3120.8,4.60068]
[1644934152420,0.00984582,3122.1,3121.0,23.77]
[1644934152617,0.5,3123.5,3122.1,0.00463557]
[1644934153216,0.5,3123.5,3122.1,18.77463557]
[1644934153416,0.01885138,3124.3,3122.3,18.77]
[1644934153620,0.01885138,3124.3,3122.4,20.3708]
[1644934153877,0.01885138,3124.3,3122.6,18.77]
[1644934154081,0.00246025,3123.9,3122.7,19.19119099]
[1644934154276,0.00246025,3123.9,3122.8,20.0054]
[1644934154479,0.00246025,3123.9,3123.0,0.8002]
[1644934154681,0.00246025,3123.9,3123.1,3.95026604]
[1644934154882,0.00246025,3123.9,3123.2,0.80001]
[1644934155076,0.00246025,3123.9,3123.3,4.04193347]
[1644934155277,0.01885138,3124.3,3123.4,1.0]
[1644934155476,0.01885138,3124.3,3123.1,1.98401]
[1644934155477,0.01885138,3124.3,3123.6,0.80004]
[1644934155681,0.01885138,3124.3,3123.1,0.3]
[1644934155875,0.01885138,3124.3,3122.8,3.636]
[1644934155876,0.01885138,3124.3,3122.9,1.80026]
[1644934156175,1.91885138,3124.8,3123.0,6.85]
[1644934156375,1.0,3124.7,3123.0,6.85]
[1644934156575,0.80033,3124.2,3122.9,1.0]
[1644934156779,0.9219975,3123.9,3122.9,1.0]
[1644934156976,0.9219975,3123.9,3123.2,0.80033]
[1644934157176,0.9219975,3123.9,3123.2,1.10033]
[1644934157477,3.5,3124.6,3123.2,1.10033]
[1644934157718,0.8002,3124.6,3123.1,1.90051]
[1644934157925,3.24164641,3124.7,3123.6,0.8002]
[1644934158115,3.45824441,3125.1,3123.6,0.8002]
[1644934158313,0.00243736,3124.1,3123.6,1.1002]
[1644934159321,1.08537826,3124.3,3123.6,1.1002]
[1644934159715,0.00189153,3124.0,3123.6,1.1002]
[1644934160515,0.00189153,3124.0,3123.6,5.72324687]
[1644934160716,0.00189153,3124.0,3123.6,26.71351224]
[1644934160914,0.00189153,3124.0,3123.9,1.60002]
[1644934161119,0.00189153,3124.0,3123.9,5.18098184]
[1644934161362,0.00189153,3124.0,3123.9,1.90002]
[1644934161564,0.001,3126.0,3123.9,2.90002]
[1644934161762,43.40833307,3125.3,3123.9,6.40055062]
[1644934161966,43.40833307,3125.3,3124.0,1.0]
[1644934161967,0.00228439,3124.6,3124.0,1.0]
[1644934162663,0.00228439,3124.6,3123.9,1.90002]
[1644934162865,0.84619988,3124.9,3124.2,0.80002]
[1644934163063,0.84848427,3124.9,3124.2,0.80002]
[1644934163264,0.84848427,3124.9,3124.2,1.10002]
[1644934163865,0.84848427,3124.9,3124.2,1.89997]
[1644934164164,0.84848427,3124.9,3124.2,1.10002]
[1644934164165,0.84619988,3124.9,3124.2,1.10002]
[1644934164366,41.80823957,3125.3,3124.2,1.10002]
[1644934164571,41.80823957,3125.3,3124.5,0.7999]
[1644934164572,0.00278972,3125.2,3124.5,0.7999]
[1644934164766,0.00278972,3125.2,3124.5,1.0999]
[1644934164968,0.00278972,3125.2,3124.6,0.79986]
[1644934165611,0.00231271,3125.0,3124.5,0.3]
[1644934165807,0.00231271,3125.0,3124.1,1.1264]
[1644934165808,0.00231271,3125.0,3124.1,1.4264]
[1644934166007,0.00231271,3125.0,3124.1,0.3]
[1644934166210,1.07747366,3125.3,3125.0,0.0008]
[1644934166407,0.80921985,3125.4,3125.0,0.0008]
[1644934166610,1.60002,3125.7,3125.0,0.0008]
[1644934166611,0.001,3126.0,3125.1,0.79985]
[1644934166813,0.001,3126.1,3125.1,0.79985]
[1644934167112,0.7998145,3126.0,3125.1,0.79985]
[1644934167507,0.8008145,3126.0,3125.1,0.79985]
[1644934167708,0.96546021,3125.6,3125.1,0.79985]
[1644934168108,39.06023821,3125.4,3125.1,0.79985]
[1644934168309,39.06023821,3125.4,3125.0,0.0008]
[1644934169156,39.86019821,3125.4,3125.0,0.0008]
[1644934170657,39.86211759,3125.4,3125.0,0.0008]
[1644934171057,39.86211759,3125.4,3124.7,0.00010583]
[1644934171058,8.45035,3125.3,3124.7,0.00010583]
[1644934171257,0.8001949,3125.2,3124.7,0.00010583]
[1644934172265,2.4006249,3125.2,3124.7,0.00010583]
[1644934172720,2.40277847,3125.2,3124.7,0.00010583]
[1644934173717,2.4006249,3125.2,3124.7,0.00010583]
[1644934173916,2.4006249,3125.2,3124.0,3.79406873]
[1644934173917,0.8000401,3124.9,3124.1,1.0]
[1644934174214,1.60043,3125.2,3124.2,1.60006]
[1644934174215,0.99547495,3125.1,3124.2,1.60006]
[1644934174417,0.99547495,3125.1,3124.2,1.90006]
[1644934174418,1.6002051,3125.0,3124.2,1.90006]
[1644934174618,1.6002051,3125.0,3124.2,0.3]
[1644934174619,1.60026,3124.9,3124.2,0.3]
[1644934174819,1.60026,3124.9,3124.3,0.80009]
[1644934175216,1.60026,3124.9,3124.4,0.3]
[1644934175417,0.80011,3124.8,3124.4,3.83566878]
[1644934175616,41.46082161,3125.4,3124.4,0.3]
[1644934175617,39.06023821,3125.4,3124.4,0.3]
[1644934175817,39.06023821,3125.4,3124.2,1.0]
[1644934176020,39.06023821,3125.4,3124.7,0.79992]
[1644934176465,40.66009691,3125.4,3124.7,0.79992]
[1644934177266,40.66009691,3125.4,3124.6,1.59983]
[1644934177666,0.7999699,3125.2,3124.6,1.59983]
[1644934178767,0.00244021,3125.2,3124.7,3.5801548]
[1644934178968,0.00244021,3125.2,3124.8,1.59947]
[1644934179164,0.00244021,3125.2,3124.8,2.59947]
[1644934179392,0.00244021,3125.2,3124.8,2.89947]
[1644934179566,0.00244021,3125.2,3124.7,0.004]
[1644934179766,0.93493075,3125.8,3124.7,0.004]
[1644934179963,0.00244029,3125.2,3124.7,0.004]
[1644934180223,0.00244029,3125.2,3124.8,0.79998]
[1644934180721,0.80242029,3125.2,3124.8,0.79998]
[1644934180919,1.60002,3125.4,3124.8,0.79998]
[1644934181119,0.00244029,3125.2,3124.8,0.79998]
[1644934181719,0.00244029,3125.2,3124.9,3.69460556]
[1644934181920,0.00244029,3125.2,3125.0,0.79968]
[1644934182222,0.10100898,3126.2,3125.0,0.79968]
[1644934182419,0.7997793,3125.8,3125.0,0.79968]
[1644934182825,0.79983,3125.6,3125.0,0.79968]
[1644934183224,55.52559601,3125.2,3125.0,4.59968]
[1644934183422,0.001,3125.9,3125.2,0.79966]
[1644934183624,5.1715,3127.9,3125.2,0.79966]
[1644934183625,0.03649928,3126.6,3125.5,18.77]
[1644934183864,0.03649928,3126.6,3125.7,18.77]
[1644934184067,0.03649928,3126.6,3125.7,0.6]
[1644934184267,0.03649928,3126.6,3125.7,0.3]
[1644934184465,0.91530419,3126.9,3125.8,1.59866]
[1644934184666,0.001,3127.4,3125.8,0.79933]
[1644934184868,0.79947,3127.1,3125.9,1.59886]
[1644934185067,0.79947,3127.1,3125.9,1.89886]
[1644934185374,0.001,3127.2,3125.7,3.5]
[1644934185572,0.89650555,3127.3,3126.1,0.79948]
[1644934185768,0.7994586,3127.0,3126.1,0.79948]
[1644934185967,0.79952,3126.8,3126.1,0.79948]
[1644934186170,0.79952,3126.8,3126.0,1.59896]
[1644934186171,1.88999054,3126.8,3126.0,1.59896]
[1644934186368,0.001,3126.7,3126.0,1.59896]
[1644934186766,0.001,3126.7,3125.7,0.13819997]
[1644934186767,1.12724406,3126.3,3125.7,0.13819997]
[1644934186967,0.80071,3126.2,3125.7,0.13819997]
[1644934187166,0.71963901,3126.2,3125.7,0.13819997]
[1644934187365,0.001,3126.3,3125.7,0.13819997]
[1644934187610,0.001,3126.5,3125.7,0.13819997]
[1644934187812,0.7995986,3126.4,3125.7,0.13819997]
[1644934188014,0.80055,3126.5,3125.8,0.79967]
[1644934188209,0.001,3126.6,3125.8,0.79967]
[1644934188411,0.00237335,3126.3,3125.8,0.79967]
[1644934188613,0.00237335,3126.3,3126.1,0.00741175]
[1644934188910,0.00237335,3126.3,3126.2,0.7995]
[1644934189110,0.00237335,3126.3,3126.1,1.60641175]
[1644934189310,0.79958,3126.5,3126.1,1.60641175]
[1644934189510,0.00184165,3126.4,3126.1,1.60641175]
[1644934189913,0.9283621,3126.2,3126.1,0.00411175]
[1644934190411,1.2293621,3126.2,3126.1,0.00407806]
[1644934190628,1.6133621,3126.2,3126.1,0.00407806]
[1644934191212,1.3133621,3126.2,3126.1,0.00407806]
[1644934191481,0.9293621,3126.2,3126.1,0.00407806]
[1644934191681,0.9283621,3126.2,3126.1,0.00407806]
[1644934193083,0.9293621,3126.2,3126.1,0.00407806]
[1644934193285,1.2293621,3126.2,3126.1,0.00407806]
[1644934194083,0.9293621,3126.2,3126.1,0.00407806]
[1644934196312,0.9293621,3126.2,3126.1,0.00807806]
[1644934197918,2.23046172,3126.2,3126.1,0.00807806]
[1644934198521,2.24046172,3126.2,3126.1,0.00816717]
[1644934198966,2.24046172,3126.2,3126.1,0.00807806]
[1644934198967,2.74046172,3126.2,3126.1,0.00807806]
[1644934199367,2.74046172,3126.2,3126.1,7.806e-05]
[1644934199368,1.61209962,3126.2,3126.1,7.806e-05]
[1644934199570,1.61209962,3126.2,3124.6,1.19807672]
[1644934199571,0.79997,3125.6,3124.7,0.06810597]
[1644934199868,1.59994,3125.7,3124.7,0.06810597]
[1644934199869,0.7999528,3125.4,3124.7,0.06810597]
[1644934200071,43.75950117,3125.1,3124.8,0.06810597]
[1644934200268,43.75950117,3125.1,3124.9,0.06810597]
[1644934200469,44.66250081,3125.1,3125.0,0.06810597]
[1644934200667,0.79997,3125.0,3124.6,0.80189904]
[1644934200868,0.8000004,3124.9,3124.7,0.0681051]
[1644934201267,0.8000004,3124.9,3124.8,0.0681051]
[1644934201669,0.79997,3125.0,3124.7,0.79991]
[1644934201968,43.75950117,3125.1,3124.8,0.0681051]
[1644934202168,43.75950117,3125.1,3124.9,0.0681051]
[1644934202372,43.75950117,3125.1,3124.6,2.40175114]
[1644934202373,43.75950117,3125.1,3125.0,0.0681051]
[1644934202613,43.75950117,3125.1,3124.8,1.59962]
[1644934202813,0.7999105,3125.0,3124.9,0.0681051]
[1644934203219,0.7999105,3125.0,3124.6,0.00248117]
[1644934203619,0.7999105,3125.0,3124.4,0.59333904]
[1644934203817,0.7999105,3125.0,3124.8,0.00619146]
[1644934204013,0.7999105,3125.0,3124.9,0.0681051]
[1644934204413,0.7999105,3125.0,3124.6,0.002577]
[1644934204414,6.61147775,3124.9,3124.6,0.002577]
[1644934204622,9.01179755,3124.9,3124.6,0.002577]
[1644934204815,0.3,3124.8,3124.6,0.002577]
[1644934205018,1.6003021,3124.8,3123.9,0.80017]
[1644934205214,1.6003021,3124.8,3124.6,0.00257605]
[1644934205215,0.8001521,3124.8,3124.6,0.00257605]
[1644934205616,2.4003821,3124.8,3124.6,0.00257605]
[1644934206221,1.07072855,3124.4,3124.0,0.59333904]
[1644934206465,1.87090855,3124.4,3124.0,0.59333904]
[1644934206662,0.80018,3124.4,3124.0,0.59333904]
[1644934207062,0.80018,3124.4,3124.1,0.59333904]
[1644934207264,0.94750567,3124.5,3124.3,0.80008]
[1644934207464,0.8001044,3124.4,3124.0,0.59581302]
[1644934207664,0.8001044,3124.4,3124.1,0.59333904]
[1644934207864,1.6002244,3124.4,3124.0,0.59581302]
[1644934208063,1.6002244,3124.4,3124.0,0.15223238]
[1644934208263,1.6002244,3124.4,3123.9,1.6002]
[1644934208264,0.80012,3124.4,3123.9,1.6002]
[1644934208467,1.6001247,3124.4,3124.1,0.80006]
[1644934208664,0.80012,3124.4,3124.1,0.80219606]
[1644934212614,0.8000493,3124.3,3124.1,0.80219606]
[1644934212816,0.8000493,3124.3,3124.1,0.80224606]
[1644934214763,1.37583709,3124.4,3124.1,0.80224606]
[1644934214965,3.30107538,3125.3,3124.3,0.78185113]
[1644934214966,0.10100898,3125.3,3124.3,0.78185113]
[1644934215163,0.10100898,3125.3,3124.5,1.16699384]
[1644934215363,0.7997,3125.4,3124.5,1.46699384]
[1644934215564,1.60184266,3125.6,3124.5,3.24884497]
[1644934215766,2.41872859,3126.2,3124.6,0.79978]
[1644934215767,0.79984,3125.9,3124.6,0.79978]
[1644934215964,1.02142076,3125.5,3124.8,0.7997]
[1644934216568,0.7997,3125.3,3124.8,0.7997]
[1644934217916,0.79998,3125.2,3124.5,1.16699384]
[1644934218117,1.10005,3125.1,3124.5,1.16699384]
[1644934218814,1.02945319,3124.6,3124.5,1.16699384]
[1644934221565,5.8,3124.5,3123.8,0.78470812]
[1644934221769,5.8,3124.5,3123.8,0.78185113]
[1644934221962,5.8,3124.5,3123.3,3.12034]
[1644934221963,0.80037,3124.4,3123.3,0.62498513]
[1644934222163,0.3,3124.3,3123.8,0.00285699]
[1644934222365,0.91941352,3123.9,3123.8,0.00285699]
[1644934222769,1.21941352,3123.9,3123.8,0.00285699]
[1644934222964,1.21941352,3123.9,3123.1,0.80039]
[1644934223167,1.21941352,3123.9,3123.7,0.00285697]
[1644934223766,3.62056352,3123.9,3123.7,0.00285697]
[1644934223967,1.60077,3123.8,3123.7,0.00285697]
[1644934224166,4.0019222,3123.8,3123.5,0.80029]
[1644934224370,4.0019222,3123.8,3123.6,0.002857]
[1644934224566,0.3,3123.7,3123.6,0.002857]
[1644934225217,1.1002831,3123.7,3123.6,0.002857]
[1644934225417,1.6008236,3123.6,3122.4,1.14844374]
[1644934225623,4.0031543,3123.3,3122.1,0.00463557]
[1644934225814,1.15626705,3122.5,3122.1,0.00463557]
[1644934226014,1.3,3123.2,3122.1,1.15307931]
[1644934226015,0.3,3123.2,3122.1,1.15307931]
[1644934226213,45.62796485,3123.1,3122.1,0.00463557]
[1644934226412,0.8005225,3122.8,3122.1,0.00463557]
[1644934226613,0.8005225,3122.8,3122.2,1.94905374]
[1644934226814,1.1005225,3122.8,3122.4,0.00285782]
[1644934227016,2.03184939,3122.8,3122.4,0.00285782]
[1644934227613,2.03184939,3122.8,3122.4,0.80330782]
[1644934227614,0.80041,3122.7,3122.4,0.80330782]
[1644934227813,0.80041,3122.7,3122.4,0.80045]
[1644934228012,0.80041,3122.7,3122.4,0.80330782]
[1644934228862,1.10041,3122.7,3122.4,0.80330782]
[1644934229062,1.60109,3122.6,3122.4,0.80045]
[1644934229261,1.60109,3122.6,3122.4,0.80330786]
[1644934229862,0.3,3122.5,3122.4,0.80330786]
[1644934230062,1.60109,3122.6,3122.4,0.80330786]
[1644934230063,2.64086399,3122.6,3122.4,0.80330786]
[1644934230364,2.64086399,3122.6,3122.4,0.80045]
[1644934230561,2.64086399,3122.6,3122.1,0.00463557]
[1644934230562,2.64086399,3122.6,3122.3,0.00285789]
[1644934231165,0.3,3122.5,3122.3,0.00285789]
[1644934231366,0.3,3122.5,3122.1,0.80613838]
[1644934231367,0.3,3122.5,3122.1,0.00463557]
[1644934231565,0.88845796,3122.2,3122.1,0.00463557]
[1644934232065,0.8007574,3122.4,3122.1,0.00463557]
[1644934232710,0.8007574,3122.4,3122.1,0.80530557]
[1644934232711,1.60121,3122.3,3122.1,0.80530557]
[1644934233313,2.90844406,3122.3,3122.1,0.80530557]
[1644934233912,2.90844406,3122.3,3122.1,0.00463557]
[1644934234113,2.60844406,3122.3,3122.1,0.00463557]
[1644934234712,2.90844406,3122.3,3122.1,0.00463557]
[1644934235016,3.70916386,3122.3,3122.1,0.00463557]
[1644934235613,2.4019298,3122.3,3122.1,0.00463557]
[1644934235815,1.6012598,3122.3,3122.1,0.00463557]
[1644934236013,0.8004902,3122.5,3122.1,1.60570557]
[1644934236864,1.6009602,3122.5,3122.1,1.60570557]
[1644934237763,1.6009602,3122.5,3122.1,1.60855986]
[1644934238665,4.8994774,3122.7,3122.1,5.2466873]
[1644934238666,1.6008309,3122.7,3122.1,5.2466873]
[1644934238867,1.6008309,3122.7,3122.1,1.6111277]
[1644934239067,3.7656,3123.6,3122.2,1.60192281]
[1644934239068,3.2656,3123.6,3122.2,1.60192281]
[1644934239267,2.40112,3123.8,3122.5,0.80150281]
[1644934239467,2.40112,3123.8,3122.7,1.60058]
[1644934239668,1.04305736,3123.4,3122.7,1.60058]
[1644934239866,0.8002695,3123.3,3122.7,1.60058]
[1644934240114,0.8002695,3123.3,3123.0,0.00285371]
[1644934240115,2.4009195,3123.3,3123.0,0.00285371]
[1644934241009,0.800401,3123.1,3122.9,1.60071]
[1644934241213,1.6006472,3123.4,3123.0,5.09257191]
[1644934241214,0.80031,3123.4,3123.0,5.09257191]
[1644934241414,0.80031,3123.4,3123.1,1.0]
[1644934241613,0.80031,3123.4,3123.0,5.09257191]